bitfinex-derivatives/quotes_SOLF0:USTF0_20241127
["timestamp","ask_amount","ask_price","bid_price","bid_amount"]
[1732667998012,24.96173793,230.81,230.77,6.92827158]
[1732667998213,12.69749347,230.8,230.77,6.92827158]
[1732667998515,9.08827158,230.84,230.77,6.92827158]
[1732667998714,2.167,230.81,230.77,6.92827158]
[1732667999115,24.96499174,230.81,230.77,9.09557158]
[1732667999413,2.167,230.81,230.77,9.09557158]
[1732668000510,14.86622805,230.81,230.77,9.09557158]
[1732668000714,2.167,230.81,230.77,9.09557158]
[1732668000912,10.10034669,230.82,230.79,2.1672]
[1732668001112,2.16,230.84,230.79,9.09547158]
[1732668001512,2.1668,230.83,230.79,9.09547158]
[1732668001813,12.2677712,230.83,230.79,9.09547158]
[1732668002014,12.70133677,230.82,230.79,9.09547158]
[1732668002206,2.1668,230.83,230.79,9.09547158]
[1732668002406,24.96936614,230.83,230.79,9.09547158]
[1732668002604,12.70150297,230.82,230.81,9.09527158]
[1732668002806,6.71020297,230.82,230.81,9.09527158]
[1732668003013,25.07402268,230.93,230.81,6.92827158]
[1732668003217,10.10062183,230.92,230.91,6.92827158]
[1732668003710,10.10129846,230.92,230.91,6.92827158]
[1732668003914,25.07402268,230.93,230.91,6.92827158]
[1732668005008,8.71428455,230.92,230.91,6.92827158]
[1732668006119,18.80162158,230.92,230.87,6.92827158]
[1732668006315,18.80162158,230.91,230.87,6.92827158]
[1732668006621,10.08733703,230.9,230.87,6.92827158]
[1732668006819,25.07402268,230.93,230.69,18.08125904]
[1732668006820,10.08733703,230.89,230.69,24.10834538]
[1732668007020,10.08733703,230.89,230.84,6.92827158]
[1732668007319,2.1666,230.86,230.81,6.92827158]
[1732668007814,6.92827158,230.86,230.67,6.02708634]
[1732668008011,6.92827158,230.81,230.67,6.02708634]
[1732668008217,6.92827158,230.79,230.67,6.02708634]
[1732668008422,12.24733703,230.78,230.71,6.92827158]
[1732668008713,10.08733703,230.77,230.66,1.3037]
[1732668009020,10.08733703,230.77,230.76,6.92827158]
[1732668009214,10.08733703,230.81,230.76,9.09567158]
[1732668009416,2.16,230.82,230.8,6.92827158]
[1732668009716,2.16,230.82,230.78,6.92827158]
[1732668010513,20.93103102,230.82,230.78,6.92827158]
[1732668010720,10.07322763,230.81,230.78,6.92827158]
[1732668010918,10.07322763,230.8,230.78,6.92827158]
[1732668011117,10.07322763,230.79,230.78,6.92827158]
[1732668011722,10.07322763,230.81,230.74,6.92827158]
[1732668012020,18.76865449,230.8,230.76,6.92827158]
[1732668012221,18.76865449,230.79,230.76,6.92827158]
[1732668012620,10.07322763,230.78,230.76,6.92827158]
[1732668012820,2.167,230.81,230.76,6.92827158]
[1732668013920,2.1671,230.8,230.75,2.1675]
[1732668014524,2.1673,230.78,230.72,2.1678]
[1732668014718,6.92827158,230.81,230.72,6.92827158]
[1732668014924,6.92827158,230.81,230.74,6.92827158]
[1732668015422,2.16,230.82,230.74,6.92827158]
[1732668016125,6.92827158,230.81,230.74,6.92827158]
[1732668016330,2.1672,230.8,230.74,9.09587158]
[1732668016832,6.92827158,230.81,230.74,6.92827158]
[1732668017128,2.16,230.82,230.76,6.92827158]
[1732668017632,2.16,230.83,230.78,6.92827158]
[1732668018337,3.7924,230.87,230.8,6.92827158]
[1732668018532,3.7924,230.87,230.82,6.92827158]
[1732668018731,2.16,230.89,230.73,2.16]
[1732668019032,2.16,230.89,230.85,2.1666]
[1732668019528,2.16,230.89,230.84,6.92827158]
[1732668019730,2.1661,230.91,230.85,2.1666]
[1732668019925,25.07402268,230.93,230.88,6.92827158]
[1732668020831,25.07402268,230.93,230.88,9.09457158]
[1732668022328,25.07402268,230.93,230.84,10.81548334]
[1732668022627,25.07402268,230.93,230.86,2.1665]
[1732668022935,2.1661,230.91,230.84,10.81548334]
[1732668023839,2.1662,230.9,230.81,10.81548334]
[1732668024134,25.07402268,230.93,230.81,10.81548334]
[1732668024535,2.1663,230.89,230.83,2.1668]
[1732668024735,2.16,230.9,230.79,2.16]
[1732668025634,2.1664,230.88,230.83,2.1668]
[1732668026433,2.16,230.9,230.79,2.16]
[1732668026633,2.1664,230.87,230.82,2.1669]
[1732668026831,2.16,230.9,230.75,12.08868334]
[1732668027031,2.1666,230.86,230.78,2.1672]
[1732668027334,2.16,230.85,230.75,12.08868334]
[1732668027736,4.3266,230.85,230.79,2.1671]
[1732668027935,4.3266,230.85,230.75,12.08868334]
[1732668028133,2.16,230.85,230.75,12.08868334]
[1732668028337,2.16,230.85,230.81,2.167]
[1732668029537,2.16,230.85,230.75,12.08868334]
[1732668029933,2.1667,230.84,230.75,12.08868334]
[1732668030539,2.1668,230.83,230.75,12.08868334]
[1732668030735,2.16,230.85,230.65,2.1451109]
[1732668030943,2.16,230.85,230.72,10.81548334]
[1732668031132,2.167,230.82,230.73,2.1677]
[1732668031443,22.20954848,230.84,230.72,10.81548334]
[1732668031640,10.05340064,230.83,230.72,10.81548334]
[1732668031841,12.21340064,230.85,230.72,10.81548334]
[1732668032043,12.15493002,230.84,230.72,10.81548334]
[1732668032336,2.1672,230.79,230.74,2.1676]
[1732668033035,2.16,230.8,230.74,2.1676]
[1732668033244,2.16,230.8,230.72,10.81548334]
[1732668033944,4.3271,230.8,230.72,10.81548334]
[1732668034139,2.16,230.8,230.75,10.81548334]
[1732668034839,2.16,230.8,230.77,2.1673]
[1732668035542,2.16,230.8,230.76,2.1675]
[1732668036743,2.16,230.8,230.72,10.81548334]
[1732668036943,2.16,230.8,230.77,2.1673]
[1732668039347,2.16,230.8,230.72,10.81548334]
[1732668039550,4.3271,230.8,230.75,2.1675]
[1732668040839,4.3271,230.8,230.73,2.1677]
[1732668040840,2.16,230.8,230.73,2.1677]
[1732668042243,2.1673,230.78,230.73,2.1677]
[1732668042950,2.16,230.8,230.72,10.81548334]
[1732668043652,4.3271,230.8,230.76,2.1674]
[1732668043950,2.16,230.8,230.72,10.81548334]
[1732668044348,2.16,230.8,230.78,6.92765656]
[1732668044747,2.1666,230.86,230.81,2.1669]
[1732668044951,10.79235656,230.89,230.83,6.92765656]
[1732668045251,2.16,230.88,230.83,6.92765656]
[1732668045750,6.0247,230.89,230.83,6.92765656]
[1732668046551,2.1663,230.88,230.84,2.1666]
[1732668047148,2.1663,230.88,230.79,2.16]
[1732668047352,2.1663,230.88,230.82,6.92765656]
[1732668047552,2.1663,230.88,230.83,2.1668]
[1732668049053,2.1663,230.88,230.79,12.98008251]
[1732668049054,2.16,230.9,230.79,12.98008251]
[1732668049651,2.16,230.9,230.86,2.1665]
[1732668050548,10.06013263,230.92,230.86,2.1665]
[1732668050856,12.22013263,230.92,230.86,2.1665]
[1732668051250,12.22013263,230.92,230.82,10.82008251]
[1732668051453,2.16,230.92,230.88,2.1663]
[1732668053757,27.23992268,230.93,230.89,2.1662]
[1732668053953,25.07402268,230.93,230.85,10.82008251]
[1732668054154,25.07402268,230.93,230.88,10.82008251]
[1732668054358,2.1652,231.01,230.95,2.1656]
[1732668054660,2.16,231.0,230.95,2.1656]
[1732668055053,14.33190515,231.0,230.95,2.1656]
[1732668055256,4.3252,231.0,230.95,2.1656]
[1732668055459,10.06249881,230.99,230.95,2.1656]
[1732668057159,4.3252,231.0,230.95,2.1656]
[1732668057357,10.05590692,230.99,230.95,2.1656]
[1732668057562,10.05590692,230.99,230.91,10.82008251]
[1732668057764,10.05590692,230.98,230.91,10.82008251]
[1732668058057,2.1652,231.0,230.95,2.1656]
[1732668058466,2.1652,231.0,230.91,10.82008251]
[1732668058467,30.89411104,231.0,230.91,10.82008251]
[1732668058766,2.1654,230.98,230.92,2.1659]
[1732668058965,24.37893325,230.98,230.92,2.1659]
[1732668059265,10.05294467,230.97,230.92,2.1659]
[1732668059966,12.21844467,230.97,230.92,2.1659]
[1732668060263,10.05294467,230.96,230.92,2.1659]
[1732668060658,2.16,231.02,230.91,10.82008251]
[1732668061164,30.88810987,231.03,230.99,2.1653]
[1732668061363,22.20919535,231.02,230.97,10.82008251]
[1732668061663,10.05080892,231.01,230.98,2.1654]
[1732668061859,10.05080892,231.0,230.97,10.82008251]
[1732668062062,2.16,231.07,230.97,10.82008251]
[1732668062365,2.16,231.07,230.95,2.16]
[1732668062563,20.88646671,231.07,230.95,2.16]
[1732668062763,2.165,231.03,230.98,2.1654]
[1732668062963,30.88289529,231.05,230.95,2.16]
[1732668063160,22.2054187,231.04,230.95,2.16]
[1732668063367,10.04899012,231.03,230.95,2.16]
[1732668063566,10.04899012,231.02,230.95,2.16]
[1732668063966,10.04899012,231.06,230.95,2.16]
[1732668064264,2.1648,231.04,230.99,2.1653]
[1732668064468,12.20594816,231.04,230.99,2.1653]
[1732668064666,10.04114816,231.03,230.99,2.1653]
[1732668065262,2.1648,231.04,230.99,2.1653]
[1732668068568,2.1653,230.99,230.93,2.1658]
[1732668068766,6.91514716,231.0,230.93,6.91514716]
[1732668069569,2.1655,230.97,230.93,6.91514716]
[1732668069769,6.91514716,231.0,230.91,6.91514716]
[1732668069973,6.91514716,230.96,230.79,3.8118]
[1732668070174,2.1659,230.93,230.89,6.91514716]
[1732668070571,2.1658,230.94,230.89,6.91514716]
[1732668070767,6.91514716,230.96,230.89,6.91514716]
[1732668070967,2.16,230.97,230.87,6.91514716]
[1732668070968,6.91514716,230.94,230.87,6.91514716]
[1732668071168,2.1662,230.9,230.87,6.91514716]
[1732668071374,6.91514716,230.94,230.87,6.91514716]
[1732668071575,6.91514716,230.94,230.85,6.91514716]
[1732668072171,2.1662,230.9,230.85,6.91514716]
[1732668072373,2.16,230.91,230.79,10.81734116]
[1732668072871,2.1666,230.85,230.79,10.81734116]
[1732668073271,2.5286,230.9,230.79,10.81734116]
[1732668073973,13.34594116,230.9,230.76,10.81734116]
[1732668074171,10.00966488,230.89,230.76,10.81734116]
[1732668074371,2.1669,230.82,230.76,12.98474116]
[1732668074573,2.14,230.86,230.76,10.81734116]
[1732668074970,2.1668,230.83,230.76,10.81734116]
[1732668076375,2.1668,230.83,230.77,2.1673]
[1732668076777,2.1671,230.81,230.75,18.3260489]
[1732668076982,2.14,230.86,230.75,18.3260489]
[1732668077181,12.14972035,230.86,230.75,18.3260489]
[1732668077480,24.25735181,230.86,230.75,18.3260489]
[1732668077671,22.11735181,230.85,230.75,18.3260489]
[1732668077871,10.00972035,230.84,230.75,18.3260489]
[1732668078281,2.14,230.86,230.75,18.3260489]
[1732668078484,2.1672,230.79,230.75,18.3260489]
[1732668079390,2.14,230.81,230.75,18.3260489]
[1732668080290,4.307,230.81,230.75,18.3260489]
[1732668080683,2.14,230.81,230.75,18.3260489]
[1732668081384,2.1672,230.79,230.75,18.3260489]
[1732668081581,2.14,230.81,230.75,18.3260489]
[1732668082189,2.1672,230.79,230.75,18.3260489]
[1732668083084,2.1674,230.77,230.75,18.3260489]
[1732668085584,2.1675,230.76,230.75,18.3260489]
[1732668088091,4.3275,230.76,230.75,18.3260489]
[1732668088890,4.3275,230.76,230.75,14.3326489]
[1732668089191,4.3275,230.76,230.75,12.8601489]
[1732668089594,2.16,230.76,230.63,2.1687]
[1732668089899,10.81734116,230.73,230.59,12.97734116]
[1732668090597,10.81734116,230.73,230.59,10.81734116]
[1732668091395,10.81734116,230.7,230.57,10.81734116]
[1732668091596,2.16,230.69,230.57,10.81734116]
[1732668092094,10.81734116,230.67,230.58,2.1691]
[1732668092297,10.81734116,230.67,230.54,1.3087]
[1732668093293,2.1689,230.61,230.54,1.3087]
[1732668093493,2.16,230.63,230.51,10.81734116]
[1732668093699,10.81734116,230.61,230.48,12.11394116]
[1732668093899,2.16,230.6,230.51,2.1698]
[1732668094096,2.16,230.6,230.48,10.81734116]
[1732668094896,2.16,230.65,230.51,10.81734116]
[1732668095200,2.16,230.65,230.54,10.81734116]
[1732668095394,12.12924116,230.68,230.54,10.81734116]
[1732668095702,2.16,230.67,230.54,10.81734116]
[1732668096100,2.16,230.67,230.57,10.81734116]
[1732668096303,2.1686,230.64,230.57,10.81734116]
[1732668096497,1.3119,230.68,230.6,10.81734116]
[1732668096703,3.4859,230.72,230.63,10.81734116]
[1732668096901,3.4859,230.72,230.6,10.81734116]
[1732668098314,2.1685,230.66,230.6,12.98624116]
[1732668098702,2.16,230.67,230.6,10.81734116]
[1732668098903,2.16,230.67,230.63,10.81734116]
[1732668099102,2.1681,230.7,230.63,10.81734116]
[1732668099598,2.1681,230.69,230.64,2.1686]
[1732668099805,2.16,230.71,230.64,2.1686]
[1732668100104,33.84,230.88,230.69,10.81734116]
[1732668100404,33.84,230.88,230.64,10.81734116]
[1732668100405,2.16,230.81,230.73,10.81734116]
[1732668100610,2.16,230.81,230.76,10.81734116]
[1732668101100,1.3295,230.86,230.76,10.81734116]
[1732668101307,2.16,230.85,230.79,10.81734116]
[1732668101906,1.2574,230.87,230.79,10.81734116]
[1732668102203,2.16,230.88,230.82,10.81734116]
[1732668102406,25.07556298,230.92,230.85,10.81734116]
[1732668103707,25.07556298,230.92,230.83,2.14]
[1732668104010,2.14,230.91,230.82,12.98414116]
[1732668104309,2.14,230.91,230.82,10.81734116]
[1732668104505,2.1664,230.88,230.82,10.81734116]
[1732668104700,2.14,230.91,230.82,10.81734116]
[1732668105501,2.14,230.91,230.79,12.06704116]
[1732668106206,2.14,230.91,230.79,14.23424116]
[1732668106808,2.14,230.91,230.79,12.06704116]
[1732668107012,2.1668,230.84,230.79,12.06704116]
[1732668107306,2.14,230.86,230.76,10.81734116]
[1732668107504,2.14,230.85,230.76,10.81734116]
[1732668107705,2.14,230.84,230.76,10.81734116]
[1732668108208,2.1668,230.83,230.76,10.81734116]
[1732668108509,2.14,230.84,230.76,10.81734116]
[1732668108907,4.3067,230.84,230.76,12.98474116]
[1732668109106,2.14,230.84,230.76,12.98474116]
[1732668110207,2.14,230.84,230.76,10.81734116]
[1732668110610,2.14,230.84,230.72,2.14]
[1732668110805,2.14,230.84,230.74,10.81734116]
[1732668111312,2.1671,230.8,230.74,10.81734116]
[1732668111904,2.1671,230.8,230.67,18.33076288]
[1732668111905,2.14,230.84,230.71,10.81734116]
[1732668112106,1.2428,230.83,230.71,10.81734116]
[1732668112812,1.2428,230.83,230.74,10.81734116]
[1732668113216,2.1673,230.78,230.74,10.81734116]
[1732668113616,1.2428,230.83,230.71,10.81734116]
[1732668114213,2.1682,230.69,230.66,1.2003]
[1732668114412,10.81734116,230.78,230.66,1.2003]
[1732668114714,2.14,230.77,230.72,10.81734116]
[1732668115011,2.14,230.76,230.72,10.81734116]
[1732668115214,2.14,230.76,230.67,1.1985]
[1732668115418,2.14,230.76,230.71,10.81734116]
[1732668115717,4.3075,230.76,230.71,10.81734116]
[1732668117519,2.14,230.76,230.67,1.1985]
[1732668118017,2.1677,230.74,230.68,12.98554116]
[1732668118213,2.14,230.76,230.68,12.98554116]
[1732668118617,2.1677,230.74,230.68,12.98554116]
[1732668120019,2.14,230.76,230.68,10.81734116]
[1732668120314,10.81734116,230.81,230.67,1.1985]
[1732668120315,2.14,230.79,230.71,10.81734116]
[1732668121215,2.14,230.79,230.67,1.1985]
[1732668121216,2.14,230.8,230.74,10.81734116]
[1732668121420,2.14,230.82,230.74,10.81734116]
[1732668121912,2.14,230.83,230.74,10.81734116]
[1732668122612,2.1669,230.82,230.74,10.81734116]
[1732668122819,2.14,230.83,230.67,1.1985]
[1732668123114,2.14,230.83,230.72,10.81734116]
[1732668123324,2.1672,230.79,230.74,2.1676]
[1732668123618,2.14,230.83,230.72,10.81734116]
[1732668124117,10.81734116,230.82,230.69,10.81734116]
[1732668124327,2.1673,230.79,230.69,10.81734116]
[1732668124621,2.14,230.78,230.69,10.81734116]
[1732668125321,2.14,230.78,230.67,1.1985]
[1732668125712,2.14,230.78,230.67,3.3668]
[1732668125912,2.14,230.78,230.67,1.1985]
[1732668126223,2.1677,230.74,230.68,2.1682]
[1732668126620,2.14,230.78,230.67,1.1985]
[1732668126819,2.168,230.7,230.67,1.1985]
[1732668127319,2.14,230.73,230.61,0.1804]
[1732668127520,10.81734116,230.7,230.61,0.1804]
[1732668127727,10.81734116,230.68,230.61,0.1804]
[1732668127920,2.1688,230.62,230.61,0.1804]
[1732668128119,2.14,230.67,230.61,0.1804]
[1732668129120,10.81734116,230.77,230.62,10.81734116]
[1732668129321,4.3314,230.96,230.68,10.81734116]
[1732668129520,12.13802249,230.8,230.68,10.81734116]
[1732668129720,2.14,230.8,230.68,10.81734116]
[1732668130122,2.1674,230.77,230.68,12.98554116]
[1732668130420,2.14,230.8,230.63,1.2777]
[1732668130620,10.81734116,230.75,230.63,1.2777]
[1732668130828,10.81734116,230.72,230.63,1.2777]
[1732668131025,2.14,230.71,230.61,0.1804]
[1732668131229,2.1685,230.65,230.61,0.1804]
[1732668131916,2.14,230.66,230.61,0.1804]
[1732668132117,2.1687,230.63,230.61,0.1804]
[1732668132319,2.14,230.66,230.61,0.1804]
[1732668133228,2.1685,230.65,230.61,0.1804]
[1732668133428,2.14,230.66,230.61,0.1804]
[1732668135130,2.1681,230.7,230.63,2.1687]
[1732668135322,2.18,230.7,230.61,0.1804]
[1732668135928,2.18,230.7,230.64,2.1686]
[1732668136127,2.18,230.7,230.61,0.1804]
[1732668136822,2.1682,230.68,230.62,2.1687]
[1732668137025,2.18,230.7,230.61,0.1804]
[1732668137224,2.18,230.7,230.64,2.1686]
[1732668137526,2.18,230.7,230.62,17.34816176]
[1732668137823,25.09228541,230.78,230.62,17.34816176]
[1732668138131,2.18,230.77,230.66,17.34816176]
[1732668138523,2.1675,230.76,230.7,2.168]
[1732668139327,2.1675,230.76,230.71,2.1679]
[1732668139527,2.1676,230.75,230.66,17.34816176]
[1732668139827,2.18,230.77,230.65,2.1684]
[1732668140129,2.18,230.77,230.63,2.6178]
[1732668141230,2.1681,230.7,230.64,2.1685]
[1732668141427,2.4557,230.81,230.63,1.3002]
[1732668141428,2.18,230.72,230.63,1.3002]
[1732668141629,2.18,230.71,230.61,0.1804]
[1732668141929,2.1683,230.68,230.63,2.1687]
[1732668142133,4.3483,230.68,230.63,2.1687]
[1732668143333,2.18,230.68,230.59,1.242]
[1732668143630,2.18,230.68,230.62,17.34816176]
[1732668144925,2.18,230.68,230.59,1.242]
[1732668145127,2.18,230.68,230.63,2.1687]
[1732668146241,2.18,230.68,230.62,17.34816176]
[1732668146537,2.18,230.72,230.62,17.34816176]
[1732668146739,2.18,230.71,230.62,17.34816176]
[1732668148039,4.3479,230.71,230.66,2.1684]
[1732668148339,2.18,230.71,230.66,2.1684]
[1732668148539,2.18,230.71,230.62,17.34816176]
[1732668148540,2.168,230.7,230.65,2.1685]
[1732668149336,2.168,230.7,230.66,2.1684]
[1732668149528,17.34816176,230.8,230.62,17.34816176]
[1732668149731,2.4557,230.81,230.66,17.34816176]
[1732668149732,2.1676,230.75,230.66,17.34816176]
[1732668150646,2.1678,230.72,230.68,2.1681]
[1732668150843,2.18,230.74,230.68,2.1681]
[1732668151438,2.1678,230.72,230.66,17.34816176]
[1732668151638,2.1678,230.72,230.66,19.51646176]
[1732668151845,2.18,230.74,230.66,2.1683]
[1732668152038,2.1681,230.69,230.62,17.34816176]
[1732668152340,2.18,230.74,230.62,17.34816176]
[1732668152843,2.18,230.74,230.63,2.1687]
[1732668153345,2.1683,230.67,230.63,2.1687]
[1732668154447,2.18,230.69,230.62,17.34816176]
[1732668154647,2.1685,230.65,230.6,2.169]
[1732668155243,2.18,230.69,230.59,1.242]
[1732668156453,2.18,230.69,230.56,0.23021]
[1732668156752,1.282,230.68,230.56,0.23021]
[1732668157447,2.1689,230.62,230.56,2.39951]
[1732668159550,2.1689,230.61,230.56,2.39951]
[1732668160149,2.1689,230.61,230.57,2.1692]
[1732668160348,2.1689,230.61,230.57,13.01088849]
[1732668162454,2.1689,230.61,230.57,10.84168849]
[1732668163859,2.18,230.63,230.57,10.84168849]
[1732668164151,2.1692,230.58,230.57,10.84168849]
[1732668165456,2.2,230.58,230.4,24.10834538]
[1732668165653,1.3081,230.57,230.4,26.0144646]
[1732668165856,1.3081,230.57,230.44,10.84168849]
[1732668166355,1.3081,230.57,230.44,13.01218849]
[1732668166554,2.1698,230.52,230.44,10.84168849]
[1732668166748,2.38,230.51,230.47,10.84168849]
[1732668167056,2.38,230.56,230.5,10.84168849]
[1732668167251,2.38,230.56,230.4,13.22168849]
[1732668167252,2.38,230.56,230.53,10.84168849]
[1732668167861,1.3081,230.57,230.53,10.84168849]
[1732668168151,2.38,230.58,230.56,10.84168849]
[1732668168652,2.1691,230.6,230.56,10.84168849]
[1732668168849,2.38,230.61,230.59,10.84168849]
[1732668170255,2.38,230.61,230.48,1.3202]
[1732668170453,2.38,230.61,230.53,10.84168849]
[1732668173053,2.1693,230.57,230.53,10.84168849]
[1732668173452,2.38,230.61,230.53,10.84168849]
[1732668174663,2.1691,230.59,230.53,10.84168849]
[1732668174963,2.38,230.61,230.56,10.84168849]
[1732668175159,1.3194,230.64,230.59,10.84168849]
[1732668175160,2.56,230.63,230.59,10.84168849]
[1732668175656,2.56,230.63,230.47,2.97752]
[1732668175855,2.56,230.63,230.54,10.84168849]
[1732668176259,2.56,230.63,230.57,10.84168849]
[1732668177270,2.1689,230.61,230.57,10.84168849]
[1732668178065,2.56,230.63,230.6,10.84168849]
[1732668178765,2.56,230.63,230.57,10.84168849]
[1732668180369,2.169,230.6,230.57,10.84168849]
[1732668180667,2.169,230.6,230.54,13.01118849]
[1732668182566,2.169,230.6,230.54,10.84168849]
[1732668182767,2.169,230.6,230.59,10.84168849]
[1732668183768,3.8794,230.64,230.59,10.84168849]
[1732668183969,3.8794,230.64,230.62,10.84168849]
[1732668184466,6.048,230.64,230.62,10.84168849]
[1732668184870,2.5247,230.69,230.62,10.84168849]
[1732668184871,4.7284,230.66,230.62,10.84168849]
[1732668185066,10.03882322,230.65,230.62,10.84168849]
[1732668185272,2.56,230.66,230.62,10.84168849]
[1732668186272,2.1685,230.65,230.62,10.84168849]
[1732668186670,2.56,230.66,230.62,13.01048849]
[1732668186970,2.56,230.69,230.65,10.84168849]
[1732668187170,2.56,230.7,230.65,10.84168849]
[1732668188275,4.728,230.7,230.65,10.84168849]
[1732668189971,2.1681,230.69,230.65,10.84168849]
[1732668190172,1.2254,230.75,230.68,10.84168849]
[1732668190369,2.56,230.74,230.71,10.84168849]
[1732668190569,2.1677,230.74,230.71,10.84168849]
[1732668191074,10.04633405,230.75,230.65,2.4425]
[1732668191669,2.1683,230.67,230.63,10.84168849]
[1732668191865,2.56,230.76,230.63,10.84168849]
[1732668192073,1.2363,230.73,230.63,10.84168849]
[1732668192374,1.2363,230.73,230.6,10.84168849]
[1732668192566,32.09878801,230.73,230.6,10.84168849]
[1732668192771,32.12128801,230.72,230.6,10.84168849]
[1732668192966,2.1682,230.68,230.6,10.84168849]
[1732668193169,2.56,230.67,230.6,10.84168849]
[1732668193385,2.56,230.66,230.6,10.84168849]
[1732668193676,2.1686,230.64,230.6,10.84168849]
[1732668193871,2.56,230.66,230.6,10.84168849]
[1732668194669,2.1685,230.65,230.6,10.84168849]
[1732668195479,2.1686,230.64,230.6,10.84168849]
[1732668196374,2.56,230.66,230.6,10.84168849]
[1732668196572,2.56,230.66,230.57,13.01088849]
[1732668196768,2.56,230.66,230.57,10.84168849]
[1732668196972,2.1689,230.62,230.57,10.84168849]
[1732668197173,10.04852935,230.65,230.57,10.84168849]
[1732668197680,2.1689,230.61,230.57,10.84168849]
[1732668198281,2.1689,230.61,230.57,13.01088849]
[1732668198883,2.1689,230.61,230.57,10.84168849]
[1732668202974,2.56,230.66,230.57,10.84168849]
[1732668203178,22.21177008,230.65,230.57,10.84168849]
[1732668203379,10.0531014,230.64,230.6,10.84168849]
[1732668203582,2.56,230.68,230.6,10.84168849]
[1732668203878,20.83949664,230.67,230.6,10.84168849]
[1732668204089,2.56,230.68,230.63,10.84168849]
[1732668204388,10.05360948,230.67,230.63,10.84168849]
[1732668204579,12.22200948,230.67,230.63,10.84168849]
[1732668204782,10.05360948,230.66,230.63,10.84168849]
[1732668205382,2.56,230.68,230.6,10.84168849]
[1732668205584,2.1686,230.64,230.6,10.84168849]
[1732668207392,2.56,230.68,230.6,10.84168849]
[1732668207393,2.1688,230.62,230.6,10.84168849]
[1732668209987,2.56,230.68,230.6,10.84168849]
[1732668210689,2.56,230.68,230.63,10.84168849]
[1732668211091,2.1684,230.66,230.63,10.84168849]
[1732668211695,2.1684,230.66,230.62,2.1687]
[1732668213895,4.7282,230.68,230.64,2.1686]
[1732668215593,2.56,230.68,230.63,2.1686]
[1732668216098,2.56,230.68,230.61,1.1982]
[1732668216296,10.05835644,230.67,230.57,10.84168849]
[1732668216894,2.1687,230.64,230.59,2.169]
[1732668218508,2.56,230.68,230.57,10.84168849]
[1732668218701,2.1687,230.63,230.58,2.1691]
[1732668218895,2.1687,230.63,230.57,10.84168849]
[1732668220302,2.1689,230.61,230.57,10.84168849]
[1732668221297,2.1689,230.61,230.57,13.01088849]
[1732668223913,2.1689,230.61,230.57,2.1692]
[1732668224409,2.56,230.62,230.54,0.2924]
[1732668224611,24.80529923,230.61,230.55,6.93970345]
[1732668224818,12.62848157,230.6,230.54,0.2924]
[1732668225009,31.74407253,230.59,230.54,0.2924]
[1732668225308,12.62848157,230.58,230.54,0.2924]
[1732668225613,9.10910345,230.55,230.54,0.2924]
[1732668226008,19.17758502,230.55,230.54,0.2924]
[1732668226219,2.17,230.5,230.48,6.93970345]
[1732668226405,2.17,230.5,230.43,13.34680363]
[1732668226714,2.17,230.5,230.44,2.1705]
[1732668228010,2.1701,230.48,230.43,15.51740363]
[1732668228211,2.1701,230.48,230.43,14.27110363]
[1732668228411,2.1701,230.48,230.43,12.10050363]
[1732668228614,2.56,230.52,230.43,10.85480363]
[1732668228814,2.1702,230.47,230.43,10.85480363]
[1732668229416,2.1702,230.47,230.37,2.56]
[1732668229417,2.1704,230.45,230.4,13.02560363]
[1732668229617,2.1704,230.45,230.4,10.85480363]
[1732668230813,2.1704,230.45,230.35,2.569]
[1732668230814,2.1706,230.43,230.37,10.85480363]
[1732668231611,2.42,230.46,230.32,10.85480363]
[1732668231612,13.27480363,230.46,230.32,10.85480363]
[1732668232017,13.27480363,230.46,230.32,13.02640363]
[1732668232018,2.1711,230.38,230.32,13.02640363]
[1732668233021,2.42,230.39,230.32,13.02640363]
[1732668233725,2.42,230.39,230.32,10.85480363]
[1732668233914,2.42,230.43,230.35,10.85480363]